fUST/lending_fUST_20250226
["ID","MTS","AMOUNT","RATE_DAILY","PERIOD"]
[354526675,1740558645539,-700.46,0.0003589,2]
[354526676,1740558645554,-911.0,0.0003589,2]
[354526677,1740558645568,-1160.43,0.0003589,2]
[354526678,1740558645582,-500.0,0.0003589,2]
[354526679,1740558645597,-500.0,0.0003589,2]
[354526680,1740558645612,-498.30640517,0.0003589,2]
[354526681,1740558645627,-583.33,0.0003589,2]
[354526682,1740558645642,-500.0,0.0003589,2]
[354526683,1740558645657,-500.0,0.0003589,2]
[354526684,1740558645672,-583.33,0.0003589,2]
[354526685,1740558645687,-500.0,0.0003589,2]
[354526686,1740558645701,-500.0,0.0003589,2]
[354526687,1740558645715,-500.0,0.0003589,2]
[354526688,1740558645729,-500.0,0.0003589,2]
[354526689,1740558645743,-626.63,0.0003589,2]
[354526690,1740558645757,-518.21,0.0003589,2]
[354526691,1740558645768,-500.0,0.0003589,2]
[354526692,1740558645905,-500.0,0.0003589,2]
[354526693,1740558645923,-500.0,0.0003589,2]
[354526695,1740558645933,-500.0,0.0003589,2]
[354526696,1740558645942,-447.01958492,0.0003589,2]
[354526697,1740558645952,-500.0,0.0003589,2]
[354526698,1740558645961,-500.0,0.0003589,2]
[354526699,1740558645970,-545.02183865,0.0003589,2]
[354526700,1740558645979,-500.0,0.0003589,2]
[354526701,1740558645989,-500.0,0.0003589,2]
[354526702,1740558645998,-547.06,0.0003589,2]
[354526703,1740558646007,-19603.87691479,0.00035927,2]
[354526704,1740558646016,-5123.66989175,0.00036154,3]
[354526705,1740558646026,-500.0,0.00036163,2]
[354526706,1740558646035,-500.0,0.00036163,2]
[354526707,1740558646044,-500.0,0.00036163,2]
[354526708,1740558646054,-500.0,0.00036163,2]
[354526709,1740558646063,-500.0,0.00036163,2]
[354526710,1740558646072,-1934.61,0.00036163,2]
[354526711,1740558646082,-500.0,0.00036163,2]
[354526712,1740558646093,-791.41,0.00036163,2]
[354526713,1740558646104,-500.0,0.00036163,2]
[354526714,1740558646114,-510.36186202,0.00036163,2]
[354526715,1740558646123,-500.0,0.00036163,2]
[354526716,1740558646132,-500.0,0.00036163,2]
[354526717,1740558646141,-500.0,0.00036163,2]
[354526718,1740558646151,-1419.4,0.00036163,2]
[354526719,1740558646160,-1936.09,0.00036163,2]
[354526720,1740558646169,-1160.21,0.00036163,2]
[354526721,1740558646178,-728.98,0.00036163,2]
[354526722,1740558646188,-500.0,0.00036163,2]
[354526723,1740558646197,-500.0,0.00036163,2]
[354526724,1740558646207,-2716.92,0.00036163,2]
[354526725,1740558646217,-1164.04,0.00036163,2]
[354526726,1740558646226,-962.5,0.00036163,2]
[354526727,1740558646235,-500.0,0.00036163,2]
[354526728,1740558646245,-679.73,0.00036163,2]
[354526729,1740558646255,-5271.87,0.00036163,2]
[354526730,1740558646265,-500.0,0.00036163,15]
[354526731,1740558646276,-500.0,0.00036163,15]
[354526732,1740558646285,-176.56043794,0.00036163,15]
[354526733,1740558646295,-500.0,0.00036163,15]
[354526734,1740558646304,-500.0,0.00036163,15]
[354526735,1740558646314,-500.0,0.00036163,15]
[354526736,1740558646323,-500.0,0.00036163,15]
[354526737,1740558646333,-500.0,0.00036163,15]
[354526738,1740558646344,-500.0,0.00036163,15]
[354526739,1740558646353,-500.0,0.00036163,15]
[354526740,1740558646366,-500.0,0.00036163,15]
[354526741,1740558646375,-500.0,0.00036163,15]
[354526742,1740558646385,-500.0,0.00036163,15]
[354526743,1740558646395,-500.0,0.00036163,15]
[354526744,1740558646404,-500.0,0.00036163,15]
[354526745,1740558646413,-500.0,0.00036163,15]
[354526746,1740558646422,-500.0,0.00036163,15]
[354526747,1740558646431,-500.0,0.00036163,15]
[354526748,1740558646441,-500.0,0.00036163,15]
[354526749,1740558646450,-342.94549111,0.00036163,15]
[354526750,1740558646460,-500.0,0.00036163,15]
[354526751,1740558646469,-442.12970211,0.00036163,15]
[354526752,1740558646478,-500.0,0.00036163,15]
[354526754,1740558646487,-500.0,0.00036163,15]
[354526756,1740558646497,-500.0,0.00036163,15]
[354526758,1740558646506,-500.0,0.00036163,15]
[354526759,1740558646516,-500.0,0.00036163,15]
[354526760,1740558646525,-500.0,0.00036163,15]
[354526761,1740558646535,-500.0,0.00036163,15]
[354526762,1740558646544,-500.0,0.00036163,15]
[354526763,1740558646553,-500.0,0.00036163,15]
[354526764,1740558646562,-500.0,0.00036163,15]
[354526765,1740558646571,-500.0,0.00036163,15]
[354526766,1740558646581,-500.0,0.00036163,15]
[354526768,1740558646589,-500.0,0.00036163,15]
[354526770,1740558646599,-500.0,0.00036163,15]
[354526772,1740558646611,-500.0,0.00036163,15]
[354526773,1740558646621,-500.0,0.00036163,15]
[354526774,1740558646631,-500.0,0.00036163,15]
[354526776,1740558646642,-500.0,0.00036163,15]
[354526778,1740558646652,-500.0,0.00036163,15]
[354526780,1740558646662,-242.86775245,0.00036163,15]
[354526781,1740558646672,-483.36684441,0.00036163,15]
[354526783,1740558646682,-500.0,0.00036163,15]
[354526786,1740558646693,-500.0,0.00036163,15]
[354526788,1740558646703,-500.0,0.00036163,15]
[354526790,1740558646714,-500.0,0.00036163,15]
[354526791,1740558646725,-500.0,0.00036163,15]
[354526794,1740558646736,-500.0,0.00036163,15]
[354526796,1740558646748,-500.0,0.00036163,15]
[354526798,1740558646758,-2041.52,0.00036163,2]
[354526799,1740558646768,-500.0,0.00036163,15]
[354526800,1740558646777,-500.0,0.00036163,15]
[354526802,1740558646787,-500.0,0.00036163,15]
[354526804,1740558646797,-500.0,0.00036163,15]
[354526806,1740558646806,-500.0,0.00036163,15]
[354526808,1740558646816,-500.0,0.00036163,15]
[354526809,1740558646826,-500.0,0.00036163,2]
[354526810,1740558646835,-518.02002302,0.00036163,15]
[354526811,1740558646845,-500.0,0.00036163,2]
[354526812,1740558646858,-500.0,0.00036163,2]
[354526813,1740558646868,-500.0,0.00036163,2]
[354526814,1740558646878,-500.0,0.00036163,2]
[354526815,1740558646887,-500.0,0.00036163,2]
[354526816,1740558646897,-351.43814778,0.00036163,2]
[354526817,1740558647227,-148.56185222,0.00036163,2]
[354526818,1740558647236,-500.0,0.00036163,2]
[354526819,1740558647246,-500.0,0.00036163,2]
[354526820,1740558647255,-500.0,0.00036163,2]
[354526821,1740558647265,-500.0,0.00036163,2]
[354526822,1740558647275,-500.0,0.00036163,2]
[354526823,1740558647284,-500.0,0.00036163,2]
[354526824,1740558647293,-500.0,0.00036163,2]
[354526825,1740558647303,-500.0,0.00036163,2]
[354526826,1740558647312,-500.0,0.00036163,2]
[354526827,1740558647321,-500.0,0.00036163,2]
[354526828,1740558647330,-500.0,0.00036163,2]
[354526829,1740558647341,-500.0,0.00036163,2]
[354526830,1740558647351,-500.0,0.00036163,2]
[354526831,1740558647361,-500.0,0.00036163,2]
[354526832,1740558647370,-184.45426577,0.00036163,2]
[354526833,1740558647379,-503.04,0.00036164,2]
[354526834,1740558647388,-500.0,0.00036164,2]
[354526835,1740558647397,-500.0,0.00036164,2]
[354526836,1740558647406,-500.0,0.00036164,2]
[354526837,1740558647415,-500.0,0.00036164,2]
[354526838,1740558647425,-500.0,0.00036164,2]
[354526839,1740558647434,-500.0,0.00036164,2]
[354526840,1740558647443,-723.89,0.00036164,2]
[354526841,1740558647452,-500.0,0.00036164,2]
[354526842,1740558647461,-500.0,0.00036164,2]
[354526843,1740558647470,-500.0,0.00036164,2]
[354526844,1740558647480,-500.38,0.00036164,2]
[354526845,1740558647490,-500.0,0.00036164,2]
[354526846,1740558647499,-500.0,0.00036164,2]
[354526847,1740558647509,-500.0,0.00036164,2]
[354526848,1740558647519,-500.0,0.00036164,2]
[354526849,1740558647528,-500.0,0.00036164,2]
[354526850,1740558647537,-501.5,0.00036164,2]
[354526851,1740558647546,-500.0,0.00036164,2]
[354526852,1740558647555,-500.0,0.00036164,2]
[354526853,1740558647565,-504.85927931,0.00036164,2]
[354526854,1740558647574,-500.0,0.00036164,2]
[354526855,1740558647585,-500.0,0.00036164,2]
[354526856,1740558647594,-500.0,0.00036164,2]
[354526857,1740558647605,-512.87,0.00036164,2]
[354526858,1740558647615,-500.0,0.00036164,2]
[354526859,1740558647624,-500.0,0.00036164,2]
[354526860,1740558647633,-500.0,0.00036164,2]
[354526861,1740558647643,-500.0,0.00036164,2]
[354526862,1740558647652,-500.0,0.00036164,2]
[354526863,1740558647661,-500.0,0.00036164,2]
[354526864,1740558647758,-500.0,0.00036164,2]
[354526865,1740558647774,-500.0,0.00036164,2]
[354526866,1740558647783,-500.0,0.00036164,2]
[354526867,1740558647792,-500.0,0.00036164,2]
[354526868,1740558647801,-500.0,0.00036164,2]
[354526869,1740558647810,-500.0,0.00036164,2]
[354526870,1740558647820,-500.0,0.00036164,2]
[354526871,1740558647829,-500.0,0.00036164,2]
[354526872,1740558647838,-500.0,0.00036164,2]
[354526873,1740558647848,-500.0,0.00036164,2]
[354526874,1740558647859,-614.65,0.00036164,2]
[354526875,1740558647869,-500.0,0.00036164,2]
[354526876,1740558647878,-500.0,0.00036164,2]
[354526877,1740558647889,-500.0,0.00036164,2]
[354526878,1740558647898,-500.0,0.00036164,2]
[354526879,1740558647908,-500.0,0.00036164,2]
[354526880,1740558647919,-624.83,0.00036164,2]
[354526881,1740558647928,-500.0,0.00036164,2]
[354526882,1740558647938,-500.0,0.00036164,2]
[354526883,1740558647948,-589.02,0.00036164,2]
[354526884,1740558647957,-889.66,0.00036164,2]
[354526885,1740558647967,-500.0,0.00036164,2]
[354526886,1740558647977,-500.0,0.00036164,2]
[354526887,1740558647987,-500.0,0.00036164,2]
[354526888,1740558647996,-1136.23,0.00036164,2]
[354526889,1740558648006,-500.0,0.00036164,2]
[354526890,1740558648016,-500.0,0.00036164,2]
[354526891,1740558648027,-1804.81,0.00036164,2]
[354526892,1740558648037,-1190.11,0.00036164,2]
[354526893,1740558648047,-500.0,0.00036164,2]
[354526894,1740558648056,-2633.89,0.00036164,2]
[354526895,1740558648066,-500.0,0.00036164,2]
[354526896,1740558648075,-535.35,0.00036164,2]
[354526897,1740558648085,-500.0,0.00036164,2]
[354526898,1740558648094,-500.0,0.00036164,2]
[354526899,1740558648103,-770.85,0.00036164,2]
[354526900,1740558648115,-1556.33,0.00036164,2]
[354526901,1740558648126,-700.46,0.00036164,2]
[354526902,1740558648135,-911.0,0.00036164,2]
[354526903,1740558648145,-1160.43,0.00036164,2]
[354526904,1740558648154,-500.0,0.00036164,2]
[354526905,1740558648163,-500.0,0.00036164,2]
[354526906,1740558648173,-583.33,0.00036164,2]
[354526907,1740558648182,-500.0,0.00036164,2]
[354526908,1740558648194,-639.41987518,0.00036164,2]
[354526909,1740558648204,-583.33,0.00036164,2]
[354526910,1740558648214,-500.0,0.00036164,2]
[354526911,1740558648226,-500.0,0.00036164,2]
[354526912,1740558648235,-500.0,0.00036164,2]
[354526913,1740558648246,-500.0,0.00036164,2]
[354526914,1740558648255,-626.63,0.00036164,2]
[354526915,1740558648266,-518.21,0.00036164,2]
[354526916,1740558648277,-500.0,0.00036164,2]
[354526917,1740558648287,-649.00717743,0.00036164,2]
[354526918,1740558648296,-500.0,0.00036164,2]
[354526919,1740558648307,-499.22048648,0.00036164,2]
[354526920,1740558648317,-500.0,0.00036164,2]
[354526921,1740558648327,-571.04028527,0.00036164,2]
[354526922,1740558648336,-500.0,0.00036164,2]
[354526923,1740558648347,-500.0,0.00036164,2]
[354526924,1740558648359,-547.06,0.00036164,2]
[354526925,1740558648368,-215.65305884,0.00036338,2]
[354526926,1740558648378,-268.35794543,0.0003635,5]
[354526927,1740558648388,-500.0,0.0003635,5]
[354526928,1740558648398,-500.0,0.0003635,5]
[354526929,1740558648408,-500.0,0.0003635,5]
[354526930,1740558648418,-5123.66989175,0.00036372,3]
[354526931,1740558648428,-151.0,0.000364,13]
[354526932,1740558648438,-5123.66989175,0.00036428,3]
[354526933,1740558648447,-500.0,0.00036437,2]
[354526934,1740558648457,-500.0,0.00036437,2]
[354526935,1740558648467,-500.0,0.00036437,2]
[354526936,1740558648476,-500.0,0.00036437,2]
[354526937,1740558648486,-500.0,0.00036437,2]
[354526938,1740558648496,-1934.61,0.00036437,2]
[354526939,1740558648505,-500.0,0.00036437,2]
[354526940,1740558648515,-791.41,0.00036437,2]
[354526941,1740558648525,-500.0,0.00036437,2]
[354526942,1740558648534,-500.0,0.00036437,2]
[354526943,1740558648544,-500.0,0.00036437,2]
[354526944,1740558648556,-500.0,0.00036437,2]
[354526945,1740558648565,-1419.4,0.00036437,2]
[354526946,1740558648575,-1936.09,0.00036437,2]
[354526947,1740558648584,-1160.21,0.00036437,2]
[354526948,1740558648594,-728.98,0.00036437,2]
[354526949,1740558648606,-500.0,0.00036437,2]
[354526950,1740558648616,-500.0,0.00036437,2]
[354526951,1740558648626,-2716.92,0.00036437,2]
[354526952,1740558648636,-1164.04,0.00036437,2]
[354526953,1740558648646,-962.5,0.00036437,2]
[354526954,1740558648656,-500.0,0.00036437,2]
[354526955,1740558648665,-679.73,0.00036437,2]
[354526956,1740558648675,-5271.87,0.00036437,2]
[354526957,1740558648686,-2041.52,0.00036437,2]
[354526958,1740558648696,-503.04,0.00036438,2]
[354526959,1740558648705,-500.0,0.00036438,2]
[354526960,1740558648715,-500.0,0.00036438,2]
[354526961,1740558648726,-500.0,0.00036438,2]
[354526962,1740558648735,-500.0,0.00036438,2]
[354526963,1740558648745,-500.0,0.00036438,2]
[354526964,1740558648755,-500.0,0.00036438,2]
[354526965,1740558648764,-723.89,0.00036438,2]
[354526966,1740558648774,-500.0,0.00036438,2]
[354526967,1740558648784,-500.0,0.00036438,2]
[354526968,1740558648793,-500.38,0.00036438,2]
[354526969,1740558648802,-500.0,0.00036438,2]
[354526970,1740558648812,-500.0,0.00036438,2]
[354526971,1740558648821,-500.0,0.00036438,2]
[354526972,1740558648830,-500.0,0.00036438,2]
[354526973,1740558648840,-500.0,0.00036438,2]
[354526974,1740558648849,-501.5,0.00036438,2]
[354526975,1740558648860,-500.0,0.00036438,2]
[354526976,1740558648869,-500.0,0.00036438,2]
[354526977,1740558648879,-500.0,0.00036438,2]
[354526978,1740558648888,-500.0,0.00036438,2]
[354526979,1740558648898,-500.0,0.00036438,2]
[354526980,1740558648908,-512.87,0.00036438,2]
[354526981,1740558648917,-500.0,0.00036438,2]
[354526982,1740558648926,-500.0,0.00036438,2]
[354526983,1740558648935,-500.0,0.00036438,2]
[354526984,1740558648945,-500.0,0.00036438,2]
[354526985,1740558648954,-500.0,0.00036438,2]
[354526986,1740558648963,-500.0,0.00036438,2]
[354526987,1740558648973,-500.0,0.00036438,2]
[354526988,1740558648982,-500.0,0.00036438,2]
[354526989,1740558648992,-500.0,0.00036438,2]
[354526990,1740558649001,-500.4534857,0.00036438,2]
[354526991,1740558649011,-500.0,0.00036438,2]
[354526992,1740558649021,-500.0,0.00036438,2]
[354526993,1740558649031,-500.0,0.00036438,2]
[354526994,1740558649040,-500.0,0.00036438,2]
[354526995,1740558649049,-500.0,0.00036438,2]
[354526996,1740558649060,-227.0469136,0.00036438,2]
[354526997,1740558649070,-614.65,0.00036438,2]
[354526998,1740558649080,-500.0,0.00036438,2]
[354526999,1740558649090,-500.0,0.00036438,2]
[354527000,1740558649100,-500.0,0.00036438,2]
[354527001,1740558649111,-500.0,0.00036438,2]
[354527002,1740558649122,-575.70308805,0.00036438,2]
[354527003,1740558649132,-624.83,0.00036438,2]
[354527004,1740558649142,-500.0,0.00036438,2]
[354527005,1740558649152,-500.0,0.00036438,2]
[354527006,1740558649162,-589.02,0.00036438,2]
[354527007,1740558649172,-889.66,0.00036438,2]
[354527008,1740558649182,-500.0,0.00036438,2]
[354527009,1740558649191,-500.0,0.00036438,2]
[354527010,1740558649201,-500.0,0.00036438,2]
[354527011,1740558649211,-1136.23,0.00036438,2]
[354527012,1740558649221,-500.0,0.00036438,2]
[354527013,1740558649230,-505.36305433,0.00036438,2]
[354527014,1740558649241,-1804.81,0.00036438,2]
[354527015,1740558649250,-1190.11,0.00036438,2]
[354527016,1740558649260,-500.0,0.00036438,2]
[354527017,1740558649272,-2633.89,0.00036438,2]
[354527018,1740558649281,-500.0,0.00036438,2]
[354527019,1740558649291,-535.35,0.00036438,2]
[354527020,1740558649300,-500.0,0.00036438,2]
[354527021,1740558649310,-601.35862283,0.00036438,2]
[354527022,1740558649320,-770.85,0.00036438,2]
[354527023,1740558649329,-1556.33,0.00036438,2]
[354527024,1740558649338,-700.46,0.00036438,2]
[354527025,1740558649350,-911.0,0.00036438,2]
[354527026,1740558649361,-1160.43,0.00036438,2]
[354527027,1740558649371,-500.0,0.00036438,2]
[354527028,1740558649381,-502.19049988,0.00036438,2]
[354527029,1740558649390,-583.33,0.00036438,2]
[354527030,1740558649400,-247.13201406,0.00036438,2]
[354527031,1740558649409,-583.33,0.00036438,2]
[354527032,1740558649418,-500.0,0.00036438,2]
[354527033,1740558649517,-500.0,0.00036438,2]
[354527034,1740558649527,-500.0,0.00036438,2]
[354527035,1740558649537,-587.32150287,0.00036438,2]
[354527036,1740558649547,-626.63,0.00036438,2]
[354527037,1740558649556,-518.21,0.00036438,2]
[354527038,1740558649565,-500.0,0.00036438,2]
[354527039,1740558649575,-500.0,0.00036438,2]
[354527040,1740558649584,-500.0,0.00036438,2]
[354527041,1740558649594,-500.0,0.00036438,2]
[354527042,1740558649603,-500.0,0.00036438,2]
[354527043,1740558649616,-547.06,0.00036438,2]
[354527044,1740558649625,-500.0,0.00036486,5]
[354527045,1740558649635,-500.0,0.00036486,5]
[354527046,1740558649645,-500.0,0.00036486,5]
[354527047,1740558649657,-261.92577672,0.00036486,5]
[354527048,1740558649668,-500.0,0.00036486,5]
[354527049,1740558649678,-500.25636557,0.00036486,5]
[354527050,1740558649688,-500.0,0.00036486,5]
[354527051,1740558649698,-219.64839805,0.00036486,5]
[354527052,1740558649708,-500.0,0.00036486,5]
[354527053,1740558649719,-500.0,0.00036486,5]
[354527054,1740558649729,-500.0,0.00036486,5]
[354527055,1740558649739,-500.67430993,0.00036486,5]
[354527056,1740558649748,-500.0,0.00036486,5]
[354527057,1740558649757,-500.7273752,0.00036486,5]
[354527058,1740558649767,-500.0,0.00036486,5]
[354527059,1740558649777,-270.53396662,0.00036487,5]
[354527060,1740558649786,-250.0211728,0.00036487,5]
[354527061,1740558649795,-165.51638523,0.00036487,5]
[354527062,1740558649804,-168.3623044,0.00036487,5]
[354527063,1740558649814,-500.0,0.00036487,5]
[354527064,1740558649823,-265.51678815,0.00036487,2]
[354527065,1740558649832,-501.07783657,0.00036487,5]
[354527066,1740558649841,-500.0,0.00036487,5]
[354527067,1740558649851,-251.30099571,0.00036487,5]
[354527068,1740558649862,-500.0,0.00036506,5]
[354527069,1740558649872,-500.0,0.00036506,5]
[354527070,1740558649881,-500.0,0.00036506,5]
[354527071,1740558649890,-269.46984149,0.00036506,5]
[354527072,1740558649900,-500.0,0.00036506,5]
[354527073,1740558649909,-10247.3397835,0.00036523,3]
[354527074,1740558649919,-151.0,0.000366,20]
[354527075,1740558649928,-1772.36739741,0.00036612,30]
[354527076,1740558649938,-5123.66989175,0.00036702,3]
[354527077,1740558649947,-500.0,0.00036711,2]
[354527078,1740558649956,-430.29231246,0.00036711,2]
[354527079,1740558649966,-500.0,0.00036711,2]
[354527080,1740558649975,-500.0,0.00036711,2]
[354527081,1740558649984,-500.0,0.00036711,2]
[354527082,1740558649994,-1934.61,0.00036711,2]
[354527083,1740558650003,-500.0,0.00036711,2]
[354527084,1740558650012,-791.41,0.00036711,2]
[354527085,1740558650021,-500.0,0.00036711,2]
[354527086,1740558650031,-429.0355784,0.00036711,2]
[354527087,1740558650040,-500.0,0.00036711,2]
[354527088,1740558650049,-500.0,0.00036711,2]
[354527089,1740558650059,-1419.4,0.00036711,2]
[354527090,1740558650068,-1936.09,0.00036711,2]
[354527091,1740558650077,-1160.21,0.00036711,2]
[354527092,1740558650086,-728.98,0.00036711,2]
[354527093,1740558650095,-500.0,0.00036711,2]
[354527094,1740558650104,-500.0,0.00036711,2]
[354527095,1740558650114,-2716.92,0.00036711,2]
[354527096,1740558650124,-1164.04,0.00036711,2]
[354527097,1740558650133,-962.5,0.00036711,2]
[354527098,1740558650142,-500.0,0.00036711,2]
[354527099,1740558650151,-679.73,0.00036711,2]
[354527100,1740558650160,-5271.87,0.00036711,2]
[354527101,1740558650169,-2041.52,0.00036711,2]
[354527102,1740558650178,-503.04,0.00036712,2]
[354527103,1740558650188,-425.40707381,0.00036712,2]
[354527104,1740558650197,-500.0,0.00036712,2]
[354527105,1740558650206,-500.0,0.00036712,2]
[354527106,1740558650215,-500.0,0.00036712,2]
[354527107,1740558650224,-500.0,0.00036712,2]
[354527108,1740558650234,-723.89,0.00036712,2]
[354527109,1740558650243,-506.61536502,0.00036712,2]
[354527110,1740558650252,-500.0,0.00036712,2]
[354527111,1740558650263,-500.38,0.00036712,2]
[354527112,1740558650275,-500.0,0.00036712,2]
[354527113,1740558650284,-500.0,0.00036712,2]
[354527114,1740558650293,-503.34517378,0.00036712,2]
[354527115,1740558650302,-500.0,0.00036712,2]
[354527116,1740558650312,-500.0,0.00036712,2]
[354527117,1740558650322,-501.5,0.00036712,2]
[354527118,1740558650331,-500.0,0.00036712,2]
[354527119,1740558650340,-500.0,0.00036712,2]
[354527120,1740558650351,-500.0,0.00036712,2]
[354527121,1740558650363,-500.0,0.00036712,2]
[354527122,1740558650372,-500.0,0.00036712,2]
[354527123,1740558650381,-512.87,0.00036712,2]
[354527124,1740558650391,-500.0,0.00036712,2]
[354527125,1740558650400,-500.0,0.00036712,2]
[354527126,1740558650410,-500.0,0.00036712,2]
[354527127,1740558650419,-239.69382109,0.00036712,2]
[354527128,1740558650428,-500.0,0.00036712,2]
[354527129,1740558650438,-500.0,0.00036712,2]
[354527130,1740558650447,-500.0,0.00036712,2]
[354527131,1740558650457,-500.0,0.00036712,2]
[354527132,1740558650466,-500.0,0.00036712,2]
[354527133,1740558650475,-500.0,0.00036712,2]
[354527134,1740558650485,-500.0,0.00036712,2]
[354527135,1740558650494,-500.0,0.00036712,2]
[354527136,1740558650503,-500.0,0.00036712,2]
[354527137,1740558650513,-500.0,0.00036712,2]
[354527138,1740558650522,-614.65,0.00036712,2]
[354527139,1740558650531,-500.0,0.00036712,2]
[354527140,1740558650541,-506.04088682,0.00036712,2]
[354527141,1740558650550,-500.0,0.00036712,2]
[354527142,1740558650560,-500.0,0.00036712,2]
[354527143,1740558650569,-624.83,0.00036712,2]
[354527144,1740558650578,-500.0,0.00036712,2]
[354527145,1740558650587,-500.0,0.00036712,2]
[354527146,1740558650597,-589.02,0.00036712,2]
[354527147,1740558650613,-889.66,0.00036712,2]
[354527148,1740558650622,-500.0,0.00036712,2]
[354527149,1740558650636,-500.0,0.00036712,2]
[354527150,1740558650645,-500.0,0.00036712,2]
[354527151,1740558650655,-1136.23,0.00036712,2]
[354527152,1740558650664,-500.0,0.00036712,2]
[354527153,1740558650674,-1804.81,0.00036712,2]
[354527154,1740558650683,-1190.11,0.00036712,2]
[354527155,1740558650692,-500.0,0.00036712,2]
[354527156,1740558650702,-2633.89,0.00036712,2]
[354527157,1740558650711,-500.0,0.00036712,2]
[354527158,1740558650720,-535.35,0.00036712,2]
[354527159,1740558650729,-502.42176256,0.00036712,2]
[354527160,1740558650738,-770.85,0.00036712,2]
[354527161,1740558650747,-1556.33,0.00036712,2]
[354527162,1740558650756,-700.46,0.00036712,2]
[354527163,1740558650765,-911.0,0.00036712,2]
[354527164,1740558650774,-1160.43,0.00036712,2]
[354527165,1740558650784,-500.0,0.00036712,2]
[354527166,1740558650793,-583.33,0.00036712,2]
[354527167,1740558650802,-583.33,0.00036712,2]
[354527168,1740558650812,-500.0,0.00036712,2]
[354527169,1740558650821,-500.0,0.00036712,2]
[354527170,1740558650831,-500.0,0.00036712,2]
[354527171,1740558650840,-626.63,0.00036712,2]
[354527172,1740558650849,-518.21,0.00036712,2]
[354527173,1740558650859,-500.0,0.00036712,2]
[354527174,1740558650868,-500.0,0.00036712,2]
[354527175,1740558650877,-500.0,0.00036712,2]
[354527176,1740558650887,-500.0,0.00036712,2]
[354527177,1740558650896,-547.06,0.00036712,2]
[354527178,1740558650905,-151.0,0.000368,15]
[354527179,1740558650916,-5123.66989175,0.00036976,3]
[354527180,1740558650926,-500.0,0.00036985,2]
[354527181,1740558650935,-500.0,0.00036985,2]
[354527182,1740558650944,-500.0,0.00036985,2]
[354527183,1740558650954,-500.0,0.00036985,2]
[354527184,1740558650963,-1934.61,0.00036985,2]
[354527185,1740558650973,-500.0,0.00036985,2]
[354527186,1740558650982,-791.41,0.00036985,2]
[354527187,1740558650992,-500.0,0.00036985,2]
[354527188,1740558651074,-500.0,0.00036985,2]
[354527189,1740558651092,-402.96688032,0.00036985,2]
[354527190,1740558651102,-1419.4,0.00036985,2]
[354527191,1740558651111,-1936.09,0.00036985,2]
[354527192,1740558651120,-1160.21,0.00036985,2]
[354527193,1740558651130,-728.98,0.00036985,2]
[354527194,1740558651139,-500.0,0.00036985,2]
[354527195,1740558651148,-500.0,0.00036985,2]
[354527196,1740558651157,-2716.92,0.00036985,2]
[354527197,1740558651166,-1164.04,0.00036985,2]